bitfinex-derivatives/quotes_BTCF0:USTF0_20251229
["timestamp","ask_amount","ask_price","bid_price","bid_amount"]
[1767012595976,0.02403765,87402.0,87391.0,0.05748]
[1767012596275,0.02403765,87401.0,87391.0,0.0689362]
[1767012596474,0.02403765,87400.0,87391.0,0.0689362]
[1767012596669,0.0114539,87410.0,87391.0,0.0689362]
[1767012596870,0.02382993,87409.0,87391.0,0.0689362]
[1767012597069,0.02382993,87408.0,87391.0,0.0689362]
[1767012597273,0.02382993,87407.0,87391.0,0.0689362]
[1767012597574,0.02382993,87406.0,87391.0,0.0689362]
[1767012597773,0.02382993,87405.0,87391.0,0.0689362]
[1767012598075,0.02382993,87404.0,87391.0,0.0689362]
[1767012598278,0.0114539,87410.0,87391.0,0.0689362]
[1767012598279,0.02382993,87403.0,87393.0,0.011456]
[1767012598575,0.02382993,87402.0,87393.0,0.011456]
[1767012598775,0.02382993,87401.0,87393.0,0.011456]
[1767012598975,0.02382993,87400.0,87393.0,0.011456]
[1767012599178,0.02382993,87399.0,87393.0,0.011456]
[1767012599375,0.0114539,87410.0,87393.0,0.011456]
[1767012599577,0.02382948,87409.0,87393.0,0.011456]
[1767012599778,0.02382948,87408.0,87393.0,0.011456]
[1767012599978,0.02382948,87407.0,87393.0,0.011456]
[1767012600172,0.02382948,87406.0,87393.0,0.011456]
[1767012600478,0.02382948,87405.0,87393.0,0.011456]
[1767012600664,0.0114539,87410.0,87393.0,0.011456]
[1767012600665,0.02382948,87404.0,87393.0,0.011456]
[1767012600868,0.02382948,87403.0,87393.0,0.011456]
[1767012601073,0.02382948,87402.0,87393.0,0.011456]
[1767012601272,1.59e-06,87412.0,87410.0,0.0114537]
[1767012601473,0.0114505,87436.0,87411.0,0.05748]
[1767012601474,0.08197583,87432.0,87411.0,0.05748]
[1767012601772,0.0114538,87411.0,87403.0,0.05748]
[1767012601972,0.0114538,87411.0,87399.0,0.05748]
[1767012602166,0.0114525,87421.0,87392.0,0.11441909]
[1767012602377,0.0114542,87408.0,87393.0,0.15484]
[1767012602679,0.0114542,87408.0,87394.0,0.05748]
[1767012602978,0.0114544,87406.0,87394.0,0.05748]
[1767012603180,0.00017159,87415.0,87394.0,0.05748]
[1767012603181,0.011454,87409.0,87394.0,0.05748]
[1767012603979,0.0114536,87412.0,87394.0,0.05748]
[1767012604382,0.00017159,87415.0,87394.0,0.05748]
[1767012604584,0.00017159,87415.0,87398.0,0.0114553]
[1767012604886,0.09753159,87415.0,87398.0,0.0114553]
[1767012605576,0.0114533,87414.0,87394.0,0.05748]
[1767012605884,0.09753159,87415.0,87394.0,0.05748]
[1767012606379,0.15501159,87415.0,87394.0,0.05748]
[1767012606986,0.15501159,87415.0,87395.0,0.0114558]
[1767012608400,0.00017159,87415.0,87396.0,0.11440993]
[1767012608585,0.09736,87429.0,87400.0,0.18695617]
[1767012608887,0.04568,87432.0,87414.0,0.0114532]
[1767012609078,0.057131,87432.0,87411.0,0.05748]
[1767012609481,0.057131,87432.0,87412.0,0.0114535]
[1767012609678,0.00017159,87431.0,87415.0,0.0114531]
[1767012609883,0.01162269,87431.0,87413.0,0.00017159]
[1767012610483,0.00017159,87431.0,87413.0,0.00017159]
[1767012610687,0.00017159,87431.0,87413.0,0.01162489]
[1767012611084,0.0114512,87430.0,87413.0,0.00017159]
[1767012611279,0.00017159,87431.0,87413.0,0.00017159]
[1767012613189,0.00017159,87431.0,87414.0,0.0114532]
[1767012613781,0.00017159,87431.0,87413.0,0.00017159]
[1767012614885,0.00017159,87431.0,87413.0,0.01162489]
[1767012616787,0.0114512,87430.0,87413.0,0.00017159]
[1767012616987,0.0114516,87427.0,87413.0,0.00017159]
[1767012617295,0.0114512,87430.0,87413.0,0.00017159]
[1767012617886,0.0114512,87430.0,87410.0,0.05744]
[1767012618089,0.0114517,87427.0,87410.0,0.05744]
[1767012618294,0.00017159,87431.0,87410.0,0.05744]
[1767012618490,0.0114523,87422.0,87405.0,0.05744]
[1767012618794,0.0114521,87423.0,87405.0,0.05761159]
[1767012620988,0.0114525,87421.0,87405.0,0.05761159]
[1767012622890,0.09732,87424.0,87405.0,0.05761159]
[1767012623196,0.05744,87423.0,87397.0,0.05744]
[1767012623387,0.0114535,87413.0,87397.0,0.05744]
[1767012623894,0.0114538,87411.0,87397.0,0.05744]
[1767012624596,0.00017159,87413.0,87397.0,0.05744]
[1767012624597,0.011454,87409.0,87397.0,0.05744]
[1767012626398,0.0114536,87412.0,87397.0,0.05744]
[1767012626993,0.06170059,87429.0,87400.0,0.18695617]
[1767012627194,0.09732,87435.0,87400.0,0.18695617]
[1767012627395,0.09732,87434.0,87416.0,0.0114529]
[1767012627999,0.09749159,87434.0,87416.0,0.01162449]
[1767012628687,0.09749159,87434.0,87418.0,0.0114527]
[1767012628894,0.00017159,87434.0,87418.0,0.0114527]
[1767012629202,1.59e-06,87434.0,87420.0,0.0114524]
[1767012630088,1.59e-06,87434.0,87421.0,0.05744]
[1767012630286,1.59e-06,87434.0,87422.0,0.09732]
[1767012631096,1.59e-06,87434.0,87425.0,0.0114517]
[1767012631398,1.59e-06,87434.0,87422.0,0.1087722]
[1767012631595,1.59e-06,87434.0,87416.0,0.00017159]
[1767012631998,0.0114508,87433.0,87417.0,0.06887]
[1767012633102,0.0114512,87430.0,87417.0,0.06887]
[1767012633400,0.0114514,87428.0,87417.0,0.06887]
[1767012634193,0.0114511,87431.0,87417.0,0.06887]
[1767012634805,0.0114511,87431.0,87417.0,0.01143]
[1767012635010,0.0114511,87431.0,87417.0,0.05887]
[1767012635194,0.0114511,87431.0,87417.0,0.00143]
[1767012635800,0.0114511,87431.0,87416.0,0.05761159]
[1767012636808,0.0114514,87429.0,87416.0,0.05761159]
[1767012637106,0.0114517,87427.0,87416.0,0.05761159]
[1767012637496,0.0114517,87427.0,87416.0,0.05744]
[1767012639809,0.0114512,87430.0,87416.0,0.05744]
[1767012641601,0.0114508,87433.0,87416.0,0.05744]
[1767012642104,0.0114511,87431.0,87416.0,0.05744]
[1767012642711,1.59e-06,87434.0,87416.0,0.05744]
[1767012642911,0.0114513,87430.0,87416.0,0.05744]
[1767012644310,0.0114508,87433.0,87416.0,0.05744]
[1767012644505,0.0114511,87431.0,87416.0,0.05744]
[1767012645007,1.59e-06,87434.0,87420.0,0.0114524]
[1767012645205,1.59e-06,87434.0,87417.0,0.0114528]
[1767012646813,1.59e-06,87434.0,87416.0,0.05744]
[1767012649415,0.0114509,87433.0,87416.0,0.05744]
[1767012657735,0.06170218,87434.0,87416.0,0.05744]
[1767012658141,0.07315288,87434.0,87416.0,0.05744]
[1767012658937,0.0114511,87431.0,87416.0,0.05744]
[1767012659131,0.07315288,87434.0,87416.0,0.05744]
[1767012662337,0.06170059,87433.0,87416.0,0.05744]
[1767012662538,0.06170059,87433.0,87413.0,0.00017159]
[1767012662539,0.18682652,87426.0,87407.0,0.09732]
[1767012662741,0.18682652,87422.0,87407.0,0.05744]
[1767012663046,0.0114529,87417.0,87407.0,0.05744]
[1767012663248,0.18682652,87422.0,87407.0,0.05744]
[1767012663445,0.02415565,87421.0,87407.0,0.05744]
[1767012663646,0.02415565,87420.0,87407.0,0.05744]
[1767012663947,0.02415565,87419.0,87407.0,0.05744]
[1767012664240,0.0114529,87417.0,87395.0,0.0114557]
[1767012664434,0.0114529,87417.0,87377.0,0.011458]
[1767012664435,0.02415565,87416.0,87396.0,0.15476]
[1767012664632,0.02415565,87415.0,87397.0,0.09732]
[1767012664845,0.02415565,87414.0,87400.0,0.18682652]
[1767012665045,0.02415565,87413.0,87400.0,0.18682652]
[1767012665245,0.02415565,87412.0,87397.0,0.09732]
[1767012665448,0.02415565,87411.0,87398.0,0.15487316]
[1767012665649,0.02415565,87410.0,87398.0,0.15487316]
[1767012665947,0.00017159,87415.0,87400.0,0.18682652]
[1767012666148,0.02414572,87414.0,87400.0,0.18682652]
[1767012666350,0.02414572,87413.0,87400.0,0.18682652]
[1767012666549,0.02414572,87412.0,87400.0,0.18682652]
[1767012666751,0.02414572,87411.0,87400.0,0.18682652]
[1767012666953,0.02414572,87410.0,87400.0,0.18682652]
[1767012667252,0.00017159,87415.0,87400.0,0.18682652]
[1767012667448,0.02413774,87414.0,87400.0,0.18682652]
[1767012667647,0.02413774,87413.0,87400.0,0.18682652]
[1767012667843,0.02413774,87412.0,87400.0,0.18682652]
[1767012668041,0.00017159,87415.0,87400.0,0.18682652]
[1767012669342,0.00017159,87415.0,87401.0,0.00144]
[1767012671752,0.00017159,87415.0,87402.0,0.0114548]
[1767012671954,0.0114482,87453.0,87409.0,0.0114539]
[1767012672152,0.15476,87434.0,87410.0,0.18682652]
[1767012672349,0.15476,87433.0,87410.0,0.18682652]
[1767012672546,0.18682652,87430.0,87410.0,0.18682652]
[1767012673047,0.00017159,87429.0,87411.0,0.00017159]
[1767012673356,0.0114516,87428.0,87411.0,0.00017159]
[1767012674557,0.00017159,87429.0,87411.0,0.00017159]
[1767012675253,0.0114518,87426.0,87411.0,0.00017159]
[1767012675644,0.07315239,87426.0,87411.0,0.00017159]
[1767012677658,0.06170059,87428.0,87416.0,0.18682652]
[1767012677954,0.00017159,87429.0,87417.0,0.05744]
[1767012678156,0.06187218,87429.0,87418.0,0.09732]
[1767012678357,0.01162289,87429.0,87418.0,0.00449254]
[1767012679457,0.01162289,87429.0,87411.0,0.00017159]
[1767012679658,0.01162289,87429.0,87412.0,0.15476]
[1767012680059,0.0114517,87427.0,87412.0,0.15476]
[1767012680250,0.0114517,87427.0,87411.0,0.00017159]
[1767012680448,0.0114517,87427.0,87412.0,0.15476]
[1767012680654,0.0114517,87427.0,87413.0,0.15476]
[1767012681362,0.0114517,87427.0,87411.0,0.00017159]
[1767012681562,0.0114517,87427.0,87412.0,0.15476]
[1767012681762,0.00017159,87429.0,87412.0,0.15476]
[1767012681962,0.0114515,87428.0,87412.0,0.15476]
[1767012683564,0.00017159,87429.0,87412.0,0.15476]
[1767012684464,0.01162299,87429.0,87412.0,0.15476]
[1767012685169,0.00017159,87429.0,87412.0,0.15476]
[1767012686061,0.0114514,87428.0,87412.0,0.15476]
[1767012686760,0.0114517,87426.0,87412.0,0.15476]
[1767012688865,0.01162299,87429.0,87412.0,0.15476]
[1767012689868,0.00017159,87429.0,87412.0,0.15476]
[1767012690168,0.18682652,87422.0,87394.0,0.0697]
[1767012690367,0.0114529,87417.0,87395.0,0.1662157]
[1767012690568,0.0114529,87417.0,87400.0,0.18682652]
[1767012690770,0.0114529,87417.0,87401.0,0.05744]
[1767012691163,0.18682652,87420.0,87401.0,0.05744]
[1767012691367,0.0114531,87416.0,87401.0,0.05744]
[1767012691571,0.0114531,87416.0,87400.0,0.18693968]
[1767012691765,0.0114531,87416.0,87401.0,0.15476]
[1767012692375,0.0114531,87416.0,87400.0,0.18693968]
[1767012692672,0.06170059,87424.0,87402.0,0.05744]
[1767012693072,0.06170059,87425.0,87402.0,0.05744]
[1767012693274,0.06170059,87425.0,87403.0,0.05744]
[1767012693475,0.06170059,87425.0,87403.0,0.15476]
[1767012694275,0.0114528,87418.0,87403.0,0.15476]
[1767012697374,0.07315259,87424.0,87403.0,0.15476]
[1767012697577,0.06170059,87424.0,87403.0,0.15476]
[1767012698076,0.06170059,87425.0,87403.0,0.15476]
[1767012698280,0.06170059,87424.0,87403.0,0.15476]
[1767012698878,0.0114522,87422.0,87403.0,0.15476]
[1767012699681,0.05744,87428.0,87401.0,0.05744]
[1767012699682,0.18682652,87420.0,87401.0,0.05744]
[1767012700280,0.06170059,87419.0,87401.0,0.05744]
[1767012700674,0.06170059,87417.0,87401.0,0.05744]
[1767012700876,0.0114532,87415.0,87401.0,0.05744]
[1767012702581,0.0114535,87413.0,87401.0,0.05744]
[1767012705183,0.0114537,87411.0,87401.0,0.04744]
[1767012708281,0.0114533,87414.0,87401.0,0.04744]
[1767012709285,0.0114536,87412.0,87401.0,0.04744]
[1767012710281,0.0114532,87415.0,87401.0,0.04744]
[1767012711382,0.06170059,87417.0,87401.0,0.04744]
[1767012711689,0.0114532,87415.0,87401.0,0.04744]
[1767012712280,0.0114532,87415.0,87401.0,0.03444]
[1767012712475,0.0114535,87413.0,87401.0,0.03444]
[1767012713583,0.07315359,87417.0,87401.0,0.03444]
[1767012717790,0.06170059,87417.0,87401.0,0.03444]
[1767012719093,0.06170059,87416.0,87401.0,0.03444]
[1767012719289,0.0114533,87414.0,87401.0,0.02344]
[1767012719599,0.0114534,87413.0,87401.0,0.02344]
[1767012720890,0.0114537,87411.0,87401.0,0.02344]
[1767012721087,0.02397724,87410.0,87401.0,0.02344]
[1767012721293,0.0114537,87411.0,87401.0,0.02344]
[1767012721294,0.02397724,87409.0,87401.0,0.02344]
[1767012721494,0.02397724,87408.0,87401.0,0.02344]
[1767012721691,0.03543144,87407.0,87401.0,0.02344]
[1767012721997,0.02397724,87406.0,87401.0,0.05587361]
[1767012722193,0.02397724,87405.0,87401.0,0.05587361]
[1767012722391,0.0114539,87410.0,87401.0,0.05587361]
[1767012723990,0.0114535,87413.0,87401.0,0.05587361]
[1767012724294,0.0114537,87411.0,87401.0,0.05587361]
[1767012725500,0.06170059,87413.0,87401.0,0.05587361]
[1767012725893,0.06170059,87415.0,87401.0,0.05587361]
[1767012727096,0.07315379,87415.0,87401.0,0.05587361]
[1767012727496,0.06170059,87415.0,87401.0,0.05587361]
[1767012728094,0.06170059,87414.0,87401.0,0.05587361]
[1767012728598,0.06170059,87415.0,87401.0,0.05587361]
[1767012729101,0.06170059,87414.0,87401.0,0.05587361]
[1767012732316,0.011453,87417.0,87401.0,0.05587361]
[1767012732317,0.07315359,87417.0,87401.0,0.05587361]
[1767012732515,0.06170059,87416.0,87401.0,0.05587361]
[1767012733615,0.0114531,87415.0,87401.0,0.05587361]
[1767012734210,0.06170059,87416.0,87401.0,0.05587361]
[1767012734717,0.0114532,87415.0,87401.0,0.05587361]
[1767012735216,0.06170059,87416.0,87401.0,0.05587361]
[1767012736318,0.07315369,87416.0,87401.0,0.05587361]
[1767012736612,0.06170059,87416.0,87401.0,0.05587361]
[1767012736813,0.07315369,87416.0,87401.0,0.05587361]
[1767012739020,0.06170059,87416.0,87401.0,0.05587361]
[1767012742321,0.06170059,87414.0,87401.0,0.05587361]
[1767012747029,0.05744,87420.0,87401.0,0.05587361]
[1767012747226,0.0688925,87420.0,87401.0,0.05587361]
[1767012747932,0.0688925,87420.0,87401.0,0.15323361]
[1767012748334,0.0114525,87420.0,87401.0,0.15323361]
[1767012748534,0.0114529,87417.0,87401.0,0.15323361]
[1767012750839,0.05744,87421.0,87401.0,0.15323361]
[1767012751229,0.0114525,87420.0,87401.0,0.15323361]
[1767012753937,0.0114529,87418.0,87401.0,0.15323361]
[1767012755941,0.0688924,87421.0,87401.0,0.15323361]
[1767012756140,0.011453,87417.0,87401.0,0.15323361]
[1767012756549,0.0114526,87420.0,87401.0,0.15323361]
[1767012762749,0.05744,87421.0,87401.0,0.15323361]
[1767012762941,0.29413,87421.0,87402.0,0.04777]
[1767012763746,0.0114529,87417.0,87402.0,0.04777]
[1767012765348,0.2481429,87417.0,87402.0,0.04777]
[1767012765642,0.24388,87415.0,87402.0,0.04777]
[1767012765845,0.24388,87415.0,87402.0,0.0574]
[1767012765846,0.24388,87414.0,87402.0,0.0574]
[1767012766045,0.0114532,87415.0,87403.0,0.04755]
[1767012766544,0.2553328,87418.0,87403.0,0.04755]
[1767012767246,0.06187653,87415.0,87403.0,0.04755]
[1767012767745,0.06187653,87416.0,87403.0,0.04755]
[1767012770345,0.07332963,87416.0,87403.0,0.04755]
[1767012770647,0.06187653,87416.0,87403.0,0.04755]
[1767012772843,0.36287653,87416.0,87403.0,0.04755]
[1767012773845,0.301,87416.0,87403.0,0.04755]
[1767012779049,0.301,87416.0,87403.0,0.0590046]
[1767012779244,0.0574,87419.0,87415.0,0.11222]
[1767012779549,0.00017159,87429.0,87415.0,0.0574]
[1767012779740,0.00017159,87429.0,87419.0,0.18689647]
[1767012780449,0.06187653,87440.0,87426.0,0.0114516]
[1767012780651,0.08197583,87454.0,87426.0,0.0114516]
[1767012780652,0.0688498,87441.0,87430.0,0.18689647]
[1767012781153,0.3127298,87441.0,87426.0,0.0574]
[1767012781451,0.24388,87440.0,87426.0,0.0574]
[1767012781651,0.01145,87439.0,87426.0,0.0574]
[1767012782145,0.2804,87429.0,87426.0,0.0574]
[1767012782352,0.01145,87439.0,87426.0,0.0574]
[1767012783751,0.25533,87439.0,87426.0,0.0574]
[1767012784645,0.24388,87439.0,87426.0,0.0574]
[1767012785148,0.0114502,87438.0,87426.0,0.0574]
[1767012786352,0.2541002,87438.0,87426.0,0.0574]
[1767012787347,0.24265,87438.0,87426.0,0.0574]
[1767012788352,0.2804,87439.0,87426.0,0.0574]
[1767012789353,0.2918501,87439.0,87426.0,0.0574]
[1767012789753,0.5345001,87439.0,87426.0,0.0574]
[1767012789951,0.09732,87452.0,87434.0,0.0114506]
[1767012790252,0.0574,87451.0,87440.0,0.18689647]
[1767012790450,0.0574,87450.0,87440.0,0.18689647]
[1767012790651,0.30005,87450.0,87436.0,0.0114503]
[1767012790960,0.0114487,87449.0,87433.0,0.0574]
[1767012791146,0.254099,87447.0,87433.0,0.0574]
[1767012791348,0.32369,87433.0,87425.0,0.00017159]
[1767012791551,0.32369,87431.0,87426.0,0.15472]
[1767012791857,0.24265,87440.0,87430.0,0.02676]
[1767012792061,0.0114503,87437.0,87430.0,0.02676]
[1767012792362,0.32369,87428.0,87427.0,0.0574]
[1767012792560,0.32369,87426.0,87425.0,0.00017159]
[1767012792854,0.24265,87432.0,87425.0,0.14173159]
[1767012793461,0.32369,87426.0,87425.0,0.00017159]
[1767012793662,0.32369,87425.0,87421.0,0.0574]
[1767012793860,0.24265,87432.0,87424.0,0.14194]
[1767012794061,0.24265,87436.0,87424.0,0.14194]
[1767012794256,0.0574,87437.0,87425.0,0.07116]
[1767012797975,0.0688503,87437.0,87425.0,0.07116]
[1767012800254,0.0574,87437.0,87425.0,0.07116]
[1767012800456,0.0114504,87436.0,87425.0,0.07116]
[1767012800761,0.0574,87437.0,87425.0,0.07116]
[1767012801560,0.0574,87437.0,87425.0,0.0826118]
[1767012802267,0.0574,87437.0,87425.0,0.07116]
[1767012802762,0.0688504,87437.0,87425.0,0.07116]
[1767012804067,0.0574,87437.0,87425.0,0.07116]
[1767012804669,0.22561,87436.0,87422.0,0.07135159]
[1767012804870,0.22561,87436.0,87422.0,0.08280379]
[1767012805962,0.22561,87436.0,87422.0,0.07135159]
[1767012806865,0.0114506,87435.0,87422.0,0.07135159]
[1767012807665,0.22561,87436.0,87422.0,0.07135159]
[1767012808066,0.22561,87436.0,87423.0,0.0805421]
[1767012808668,0.00017159,87440.0,87435.0,0.13818]
[1767012808870,0.314,87436.0,87435.0,0.13818]
[1767012809071,0.314,87436.0,87429.0,0.06909]
[1767012810072,0.05757159,87440.0,87435.0,0.13847]
[1767012812270,0.05757159,87440.0,87435.0,0.11647]
[1767012813675,0.00017159,87440.0,87435.0,0.11647]
[1767012814877,0.0124142,87442.0,87435.0,0.11647]
[1767012815072,0.0124142,87442.0,87435.0,0.16487]
[1767012815374,0.0574,87444.0,87441.0,0.0968]
[1767012815572,0.0574,87444.0,87441.0,0.01039149]
[1767012815771,0.22561,87449.0,87441.0,0.01039149]
[1767012815975,0.0574,87448.0,87441.0,0.01039149]
[1767012816979,0.314,87442.0,87441.0,0.01039149]
[1767012817185,0.314,87442.0,87435.0,0.0484]
[1767012819182,0.0574,87445.0,87435.0,0.0484]
[1767012820284,0.0574,87446.0,87435.0,0.0484]
[1767012820582,0.22561,87449.0,87433.0,0.0114508]
[1767012820780,0.0574,87448.0,87433.0,0.0114508]
[1767012821484,0.0574,87447.0,87433.0,0.0114508]
[1767012821783,0.0574,87447.0,87432.0,0.0574]
[1767012821978,0.0574,87447.0,87432.0,0.0688509]
[1767012823685,0.0114491,87446.0,87432.0,0.0574]
[1767012824385,0.28301,87447.0,87432.0,0.0574]
[1767012824586,0.294459,87447.0,87432.0,0.0574]
[1767012824888,0.28301,87447.0,87432.0,0.0574]
[1767012825083,0.294459,87447.0,87432.0,0.0574]
[1767012825282,0.22561,87446.0,87432.0,0.0574]
[1767012827706,0.22561,87446.0,87432.0,0.0688509]
[1767012830098,0.22561,87446.0,87434.0,0.0114506]
[1767012830297,0.22561,87446.0,87432.0,0.0574]
[1767012830509,0.22561,87446.0,87433.0,0.0114507]
[1767012831903,0.0114487,87449.0,87435.0,0.0114505]
[1767012831904,0.0574,87448.0,87435.0,0.0114505]
[1767012832299,0.28569,87448.0,87435.0,0.0114505]
[1767012832702,0.22829,87447.0,87435.0,0.0114505]
[1767012833607,0.23044,87430.0,87422.0,0.00017159]
[1767012833805,0.23044,87430.0,87422.0,0.09749159]
[1767012833806,0.19544355,87423.0,87422.0,0.09749159]
[1767012834001,0.23044,87430.0,87422.0,0.46848159]
[1767012834512,0.00017159,87431.0,87422.0,0.46848159]
[1767012838212,0.31843159,87431.0,87423.0,0.2520321]
[1767012838804,0.31843159,87431.0,87423.0,0.24058]
[1767012847222,0.31843159,87431.0,87423.0,0.252032]
[1767012847614,0.00017159,87431.0,87430.0,0.31359]
[1767012847810,0.31843159,87431.0,87423.0,0.24058]
[1767012848522,0.31843159,87431.0,87422.0,0.15489159]
[1767012849025,0.31826,87423.0,87422.0,0.15489159]
[1767012849220,0.23044,87430.0,87422.0,0.46848159]
[1767012850418,0.00017159,87431.0,87422.0,0.46848159]
[1767012850916,0.00017159,87431.0,87423.0,0.0114521]
[1767012851828,0.00017159,87431.0,87422.0,0.15489159]
[1767012852026,0.01162269,87431.0,87422.0,0.15489159]
[1767012852218,0.00017159,87431.0,87422.0,0.15489159]
[1767012855220,0.00017159,87431.0,87422.0,0.39547159]
[1767012856127,0.00017159,87431.0,87423.0,0.24519]
[1767012861134,0.00017159,87431.0,87430.0,0.31601]
[1767012861634,1.59e-06,87431.0,87430.0,0.31601]
[1767012861830,1.59e-06,87431.0,87430.0,0.27601]
[1767012868949,1.59e-06,87431.0,87430.0,0.21301]
[1767012874053,1.59e-06,87431.0,87430.0,0.4582]
[1767012883056,1.59e-06,87431.0,87430.0,0.21301]
[1767012885462,1.59e-06,87431.0,87430.0,0.44842]
[1767012904079,1.59e-06,87431.0,87430.0,0.39442]
[1767012904375,1.59e-06,87431.0,87430.0,0.55451]
[1767012908682,0.0114522,87423.0,87413.0,0.2015]
[1767012908982,0.0114522,87423.0,87414.0,0.14414]
[1767012909579,0.02452116,87422.0,87414.0,0.14414]
[1767012909778,0.02452116,87421.0,87414.0,0.14414]
[1767012909969,0.0114522,87423.0,87414.0,0.14414]
[1767012910170,0.02452116,87422.0,87414.0,0.14414]
[1767012910366,0.0114522,87423.0,87414.0,0.14414]
[1767012910570,0.02451569,87422.0,87414.0,0.14414]
[1767012910767,0.0114522,87423.0,87414.0,0.14414]
[1767012910972,0.02451569,87422.0,87414.0,0.14414]
[1767012911179,0.02450619,87421.0,87414.0,0.14414]
[1767012911374,0.02450619,87420.0,87414.0,0.14414]
[1767012911574,0.02450619,87419.0,87414.0,0.14414]
[1767012911767,1.59e-06,87431.0,87414.0,0.14414]
[1767012911973,1.59e-06,87431.0,87420.0,0.18679641]
[1767012912173,1.59e-06,87431.0,87413.0,0.05736]
[1767012912780,1.59e-06,87431.0,87414.0,0.0114532]
[1767012913279,1.59e-06,87431.0,87413.0,0.05736]
[1767012913779,0.01145259,87431.0,87413.0,0.0688133]
[1767012914279,1.59e-06,87431.0,87415.0,0.011453]
[1767012914682,0.0114512,87430.0,87413.0,0.05736]
[1767012915072,0.0114512,87430.0,87413.0,0.0688133]
[1767012915878,0.01145269,87431.0,87415.0,0.011453]
[1767012916384,1.59e-06,87431.0,87415.0,0.011453]
[1767012916569,1.59e-06,87431.0,87417.0,0.0114528]
[1767012916768,1.59e-06,87431.0,87413.0,0.05736]
[1767012918178,1.59e-06,87431.0,87420.0,0.18679641]
[1767012918382,0.0114512,87430.0,87420.0,0.18679641]
[1767012918684,1.59e-06,87431.0,87420.0,0.18679641]
[1767012923277,1.59e-06,87431.0,87420.0,0.28411641]
[1767012923981,0.02438818,87430.0,87420.0,0.28411641]
[1767012924174,0.02438818,87429.0,87423.0,0.011452]
[1767012924373,0.02438818,87428.0,87423.0,0.011452]
[1767012924569,0.02438818,87427.0,87423.0,0.011452]
[1767012924778,8e-08,87426.0,87423.0,0.011452]
[1767012924985,1.59e-06,87431.0,87423.0,0.011452]
[1767012925576,1.59e-06,87431.0,87420.0,0.1087724]
[1767012925783,1.59e-06,87431.0,87420.0,0.29556881]
[1767012926285,1.59e-06,87431.0,87422.0,0.0114521]
[1767012927388,1.59e-06,87431.0,87424.0,0.0114519]
[1767012927585,1.59e-06,87431.0,87425.0,0.05736]
[1767012928081,1.59e-06,87431.0,87429.0,0.0114512]
[1767012928277,0.09732,87445.0,87430.0,0.05736]
[1767012928481,0.24717,87441.0,87420.0,0.18679641]
[1767012928682,0.24717,87439.0,87424.0,0.0114518]
[1767012928981,0.0114501,87438.0,87424.0,0.0114518]
[1767012929182,0.0114498,87441.0,87424.0,0.0114518]
[1767012929391,0.0114503,87437.0,87424.0,0.00017159]
[1767012929694,0.0114506,87435.0,87424.0,0.00017159]
[1767012930590,0.0114502,87438.0,87425.0,0.05736]
[1767012931890,0.25879139,87441.0,87425.0,0.05736]
[1767012932490,0.24734159,87441.0,87426.0,0.0114517]
[1767012932890,0.24734159,87441.0,87430.0,0.18679641]
[1767012933090,0.24734159,87441.0,87428.0,0.0114514]
[1767012933890,0.24734159,87441.0,87430.0,0.18679641]
[1767012934784,0.24734159,87441.0,87428.0,0.0114514]
[1767012936592,0.0114499,87440.0,87425.0,0.05736]
[1767012936795,0.02475426,87439.0,87425.0,0.05736]
[1767012936993,0.02475426,87438.0,87425.0,0.05736]
[1767012937296,0.02475426,87437.0,87425.0,0.05736]
[1767012937593,0.02475426,87436.0,87425.0,0.05736]
[1767012937782,0.02475426,87435.0,87425.0,0.05736]
[1767012937985,0.02475426,87434.0,87425.0,0.05736]
[1767012938181,0.02475426,87433.0,87425.0,0.05736]
[1767012938385,0.02475426,87432.0,87425.0,0.0688118]
[1767012938592,0.24717,87438.0,87425.0,0.0688118]
[1767012938791,0.02475322,87437.0,87425.0,0.0688118]
[1767012938994,0.02475322,87436.0,87425.0,0.0688118]
[1767012939191,0.02475322,87435.0,87425.0,0.0688118]
[1767012939392,0.02475322,87434.0,87425.0,0.0688118]
[1767012939592,0.02475322,87433.0,87425.0,0.0688118]
[1767012939794,0.24717,87438.0,87425.0,0.0688118]
[1767012939990,0.02475299,87437.0,87425.0,0.0688118]
[1767012940190,0.02475299,87436.0,87425.0,0.0688118]
[1767012940393,0.02475299,87435.0,87425.0,0.0688118]
[1767012940596,0.02475299,87434.0,87425.0,0.0688118]
[1767012940794,0.02475299,87433.0,87425.0,0.0688118]
[1767012941094,0.02475752,87432.0,87425.0,0.0688118]
[1767012941292,0.24717,87438.0,87425.0,0.0688118]
[1767012941491,0.02475752,87437.0,87425.0,0.0688118]
[1767012941789,0.24717,87434.0,87423.0,0.02455]
[1767012941990,0.02475752,87433.0,87423.0,0.02455]
[1767012944697,0.02475752,87433.0,87422.0,0.05736]
[1767012945397,0.02475752,87433.0,87423.0,0.0252]
[1767012945599,0.02475752,87432.0,87423.0,0.0252]
[1767012945794,0.02475752,87431.0,87423.0,0.0252]
[1767012945998,0.24605,87437.0,87423.0,0.0252]
[1767012946304,0.02476578,87436.0,87423.0,0.0252]
[1767012946503,0.02476578,87435.0,87423.0,0.0252]
[1767012946703,0.02476578,87434.0,87423.0,0.0252]
[1767012946908,0.02476578,87433.0,87423.0,0.0252]
[1767012947100,0.02476578,87432.0,87423.0,0.0252]
[1767012947301,0.02476578,87431.0,87423.0,0.0252]
[1767012947510,0.24605,87437.0,87423.0,0.0252]
[1767012947699,0.0247669,87436.0,87426.0,0.0114516]
[1767012947900,0.0247669,87435.0,87426.0,0.0114516]
[1767012948101,0.0247669,87434.0,87423.0,0.0252]
[1767012948308,0.0247669,87433.0,87423.0,0.0252]
[1767012948508,0.0247669,87432.0,87423.0,0.0252]
[1767012948708,0.24605,87436.0,87423.0,0.0252]
[1767012948909,0.2708171,87435.0,87423.0,0.0252]
[1767012949109,0.0247671,87434.0,87423.0,0.0252]
[1767012949408,0.0247671,87433.0,87423.0,0.0252]
[1767012949595,0.0247671,87432.0,87423.0,0.0252]
[1767012949799,0.0247671,87431.0,87423.0,0.0252]
[1767012949996,0.2575006,87435.0,87423.0,0.0252]
[1767012950202,0.02477043,87434.0,87423.0,0.0252]
[1767012950506,0.24605,87416.0,87410.0,0.15468]
[1767012950706,0.24605,87421.0,87411.0,0.05736]
[1767012951009,0.03622801,87420.0,87411.0,0.05736]
[1767012951311,0.02477541,87419.0,87411.0,0.05736]
[1767012951506,0.02477541,87418.0,87411.0,0.05736]
[1767012951706,0.02477541,87417.0,87411.0,0.05736]
[1767012951905,0.02477541,87416.0,87411.0,0.05736]
[1767012952110,0.2575025,87421.0,87411.0,0.05736]
[1767012952309,0.02476515,87420.0,87411.0,0.05736]